bitfinex/quotes_ETHUSD_20241123
["timestamp","ask_amount","ask_price","bid_price","bid_amount"]
[1732377450889,1.90904546,3463.9,3462.8,0.5277]
[1732377451094,1.90904546,3463.9,3462.9,0.55]
[1732377452260,0.45971975,3464.3,3463.0,0.2398]
[1732377452508,1.90904546,3464.6,3463.5,0.55]
[1732377452676,1.90904546,3464.6,3463.5,0.7898]
[1732377453078,1.90904546,3464.6,3463.5,1.0777]
[1732377453781,1.90904546,3464.6,3463.5,0.7898]
[1732377456452,1.90904546,3463.8,3462.7,0.2398]
[1732377457227,1.90904546,3463.8,3462.7,0.26867476]
[1732377457587,1.90904546,3463.8,3462.8,0.55]
[1732377457928,1.90904546,3463.8,3463.1,0.55]
[1732377458279,1.90904546,3463.8,3463.0,0.2398]
[1732377458280,1.90904546,3463.4,3463.0,0.2398]
[1732377458480,4.90904546,3463.4,3462.4,0.2398]
[1732377458685,1.90904546,3463.0,3462.4,0.2398]
[1732377459131,0.19090455,3463.4,3462.4,0.2398]
[1732377459330,1.90904546,3463.3,3462.4,0.2398]
[1732377459999,1.90904546,3463.3,3462.5,0.55]
[1732377460618,1.90904546,3463.3,3462.6,0.2398]
[1732377460821,1.90904546,3463.3,3462.7,0.55]
[1732377461196,3.0,3463.7,3462.7,0.55]
[1732377461197,1.90904546,3463.7,3462.9,0.55]
[1732377461724,1.90904546,3463.7,3463.1,0.55]
[1732377462108,1.90904546,3463.7,3462.4,0.2398]
[1732377462310,1.90904546,3463.7,3462.6,0.2398]
[1732377462731,1.90904546,3463.7,3462.9,0.55]
[1732377462933,1.90904546,3463.7,3463.0,0.55]
[1732377463827,1.90904546,3463.7,3463.2,0.55]
[1732377464948,1.90904546,3463.7,3463.1,0.55]
[1732377465606,1.90904546,3463.7,3463.3,0.55]
[1732377466344,1.90904546,3463.7,3463.2,0.2398]
[1732377466534,1.90904546,3463.7,3463.3,0.55]
[1732377467469,1.90904546,3463.7,3463.2,0.2398]
[1732377467833,1.90904546,3463.7,3463.3,0.55]
[1732377468723,2.09995001,3463.7,3463.2,0.2398]
[1732377469146,3.02255001,3463.7,3462.1,0.2879]
[1732377469472,1.90904546,3462.9,3462.5,0.501]
[1732377470864,1.90904546,3462.9,3461.3,0.2879]
[1732377471049,1.90904546,3462.9,3461.5,0.2879]
[1732377472331,1.90904546,3462.9,3461.7,0.2879]
[1732377472531,3.0,3462.8,3461.9,0.2879]
[1732377472731,1.90904546,3462.9,3461.9,0.2879]
[1732377472954,1.90904546,3462.9,3462.1,0.2879]
[1732377473270,1.90904546,3462.9,3462.3,0.2879]
[1732377473823,1.90904546,3462.9,3462.1,0.55]
[1732377474856,0.9226,3463.1,3462.1,0.55]
[1732377475084,1.90904546,3462.9,3462.1,0.55]
[1732377477476,1.90904546,3462.9,3462.0,0.91872053]
[1732377478550,1.90904546,3462.9,3460.8,1.94760709]
[1732377478730,1.90904546,3462.1,3460.9,0.2879]
[1732377479047,0.02903746,3462.0,3460.9,0.2879]
[1732377479670,0.02903746,3462.0,3460.4,0.02889093]
[1732377479867,0.02903746,3462.0,3460.4,0.31679093]
[1732377480275,0.02903746,3462.0,3460.8,0.2879]
[1732377480573,0.02903746,3462.2,3461.4,0.2879]
[1732377480777,3.02903746,3462.2,3461.5,0.55]
[1732377480945,0.02903746,3462.2,3461.5,0.55]
[1732377481151,3.9226,3461.6,3459.6,0.02889026]
[1732377481432,1.90904546,3461.2,3459.0,0.02889682]
[1732377481725,3.95163746,3461.1,3459.0,0.02889682]
[1732377481928,3.95163746,3461.1,3459.1,0.21379423]
[1732377482233,1.90904546,3460.8,3459.2,0.31680054]
[1732377482534,0.02903746,3460.7,3459.2,0.2879]
[1732377482683,1.90904546,3460.8,3459.3,0.02890053]
[1732377483626,0.02903746,3460.7,3459.4,0.2879]
[1732377483827,0.02903746,3460.7,3459.3,0.02890053]
[1732377484130,0.02903746,3460.7,3459.2,0.55]
[1732377484314,0.02903746,3460.7,3458.5,2.00904546]
[1732377484315,0.9326,3460.6,3458.6,0.02890314]
[1732377484485,0.02903746,3460.5,3458.6,0.02890314]
[1732377484686,0.02903746,3460.5,3458.7,0.19379486]
[1732377485362,1.90904546,3460.0,3458.7,0.19379486]
[1732377485524,3.93103746,3459.9,3457.9,0.02890924]
[1732377486392,1.90904546,3459.6,3457.7,0.2879]
[1732377486665,3.93103746,3459.5,3457.7,0.2879]
[1732377486867,1.90904546,3459.2,3457.2,0.31681431]
[1732377487185,0.902,3459.0,3457.2,0.31681431]
[1732377487325,0.02903746,3458.9,3457.2,0.02891431]
[1732377487851,0.902,3459.0,3457.3,0.2879]
[1732377488056,0.93103746,3459.0,3457.4,0.25150029]
[1732377488267,0.93103746,3459.0,3457.5,0.55]
[1732377488584,0.93103746,3459.0,3457.6,0.02891433]
[1732377488943,0.02903746,3458.9,3457.6,0.02891433]
[1732377489538,0.902,3459.0,3457.6,0.02891433]
[1732377489864,0.93103746,3459.0,3457.6,0.02891433]
[1732377490568,0.902,3459.0,3457.6,0.02891433]
[1732377490773,0.02903746,3458.9,3457.6,0.02891433]
[1732377491275,0.93103746,3459.0,3457.5,0.55]
[1732377491569,0.93103746,3459.0,3457.6,0.24202018]
[1732377491765,0.93103746,3459.0,3457.7,0.21310258]
[1732377491928,0.93103746,3459.0,3457.8,0.21310258]
[1732377492129,0.93103746,3459.0,3457.9,0.21310258]
[1732377492331,0.93103746,3459.0,3458.0,0.21310258]
[1732377492556,0.93103746,3459.0,3458.2,0.55]
[1732377492750,0.46345027,3459.6,3458.2,0.55]
[1732377492751,0.902,3459.4,3458.3,0.21287702]
[1732377492970,0.902,3459.4,3458.4,0.55]
[1732377493169,1.90904546,3460.0,3458.6,0.55]
[1732377493339,1.93808292,3460.0,3458.8,0.55]
[1732377493543,1.93808292,3460.0,3459.0,0.55]
[1732377493734,1.93808292,3460.0,3459.2,0.55]
[1732377494227,1.87969292,3460.0,3459.2,0.55]
[1732377496060,0.902,3460.2,3459.2,0.55]
[1732377496264,0.9025,3461.5,3459.4,0.55]
[1732377496488,0.9025,3461.5,3459.3,0.21275585]
[1732377496489,1.90904546,3461.3,3459.6,0.55]
[1732377496654,0.31019201,3461.2,3459.8,0.55]
[1732377496848,0.31019201,3461.2,3460.0,0.55]
[1732377497044,0.31019201,3461.2,3460.2,0.55]
[1732377497260,0.31019201,3461.2,3460.0,0.55]
[1732377497261,0.9025,3460.8,3460.4,0.55]
[1732377497470,0.02903746,3460.7,3460.4,0.55]
[1732377498364,3.9025,3460.8,3460.4,0.55]
[1732377498539,0.02903746,3460.7,3460.5,0.21299967]
[1732377498741,0.02903746,3460.7,3460.4,0.55]
[1732377499349,0.02903746,3460.7,3460.6,0.55]
[1732377499747,3.0,3460.8,3460.6,0.55]
[1732377500070,4.90904546,3460.9,3460.6,0.55]
[1732377500320,0.02903746,3461.4,3459.2,0.02889844]
[1732377500321,0.9025,3461.4,3460.8,0.55]
[1732377500483,0.9025,3461.4,3461.0,0.55]
[1732377500484,0.02903746,3461.3,3461.0,0.55]
[1732377500685,1.93808292,3461.3,3461.0,0.55]
[1732377501498,1.90904546,3461.3,3461.0,0.55]
[1732377501701,0.9025,3461.4,3461.0,0.55]
[1732377503248,0.02903746,3461.3,3461.0,0.55]
[1732377503699,0.93153746,3461.4,3461.0,0.55]
[1732377506224,0.93153746,3461.4,3459.5,0.8667956]
[1732377506225,4.90904546,3461.3,3459.5,0.8667956]
[1732377506537,0.02903746,3461.2,3459.6,0.02889917]
[1732377506727,1.90904546,3460.9,3459.5,0.8379]
[1732377506899,0.02903746,3460.8,3459.5,0.2879]
[1732377507341,1.90904546,3460.9,3459.0,0.31680126]
[1732377508224,1.90904546,3460.9,3459.4,0.2879]
[1732377508435,0.8926,3460.7,3459.5,0.2879]
[1732377508759,0.02903746,3460.6,3459.9,0.2879]
[1732377509110,0.02903746,3460.6,3460.1,0.2879]
[1732377509515,0.02903746,3460.6,3460.3,0.2879]
[1732377509817,0.02903746,3460.6,3460.5,0.8379]
[1732377510018,0.92163746,3460.7,3460.5,0.8379]
[1732377510346,0.8926,3460.7,3460.5,0.2879]
[1732377510515,0.02903746,3460.6,3459.0,0.8379]
[1732377510716,1.90904546,3460.2,3459.2,0.2879]
[1732377510950,0.02903746,3460.1,3459.2,0.2879]
[1732377511128,1.90904546,3460.2,3459.4,0.2879]
[1732377511330,0.8926,3460.0,3459.6,0.2879]
[1732377511538,0.8926,3460.0,3459.8,0.2879]
[1732377511933,4.90904546,3460.2,3459.8,0.2879]
[1732377512525,4.90904546,3460.2,3459.0,0.55]
[1732377512716,4.90904546,3460.2,3459.5,0.2879]
[1732377512911,4.90904546,3460.2,3459.7,0.8379]
[1732377513117,4.90904546,3460.2,3459.7,1.26690907]
[1732377513343,4.90904546,3460.2,3459.7,0.8379]
[1732377513716,4.90904546,3460.2,3459.8,0.34316928]
[1732377513914,4.90904546,3460.2,3459.9,0.89316928]
[1732377514160,4.90904546,3460.2,3460.0,0.34316928]
[1732377514365,4.90904546,3460.2,3460.1,0.34316928]
[1732377515059,4.90904546,3460.2,3459.6,0.55]
[1732377515477,0.02903746,3460.1,3459.6,0.55]
[1732377515843,4.93808292,3460.2,3459.6,0.55]
[1732377516474,0.8926,3459.7,3459.2,0.42906625]
[1732377516687,0.02903746,3459.6,3459.2,0.55]
[1732377517096,0.8926,3459.7,3459.2,0.55]
[1732377517396,0.8926,3459.7,3459.4,0.55]
[1732377517547,0.8926,3459.7,3459.4,0.97906625]
[1732377517752,0.8926,3459.7,3459.4,0.55]
[1732377518949,0.02903746,3459.6,3459.1,0.55]
[1732377519186,0.02903746,3459.6,3457.3,0.1]
[1732377519187,1.90904546,3459.4,3457.6,0.42962919]
[1732377519502,1.90904546,3459.4,3457.7,0.45863647]
[1732377519827,1.90904546,3459.4,3457.8,0.42972309]
[1732377519986,1.90904546,3459.4,3457.9,0.71762309]
[1732377520185,1.90904546,3459.4,3458.1,0.2879]
[1732377520415,1.90904546,3459.4,3458.3,0.2879]
[1732377520583,0.02903746,3459.3,3458.6,0.55]
[1732377520799,0.02903746,3459.3,3458.8,0.55]
[1732377521001,1.90904546,3459.0,3458.9,0.42972309]
[1732377521189,1.90904546,3459.0,3458.2,0.2879]
[1732377521392,1.93808292,3459.0,3458.2,0.2879]
[1732377522224,1.93808292,3459.0,3457.2,0.55]
[1732377522385,1.93808292,3459.0,3457.5,0.2879]
[1732377522588,1.93808292,3459.0,3457.7,0.2879]
[1732377522835,3.8926,3458.9,3457.9,0.2879]
[1732377523007,0.02903746,3458.8,3457.9,0.2879]
[1732377523289,0.8926,3459.5,3457.9,0.2879]
[1732377523489,0.8926,3459.5,3458.0,0.02891324]
[1732377523787,0.8926,3459.5,3458.0,0.31681322]
[1732377524213,0.8926,3459.5,3458.2,0.2879]
[1732377524421,0.8926,3459.5,3458.4,0.2879]
[1732377524631,0.8926,3459.5,3458.6,0.2879]
[1732377524833,0.8926,3459.5,3458.8,0.2879]
[1732377525126,0.02903746,3459.6,3459.1,0.8379]
[1732377525363,0.02903746,3459.5,3459.2,0.55]
[1732377525533,0.30920201,3459.6,3459.2,0.55]
[1732377526323,0.8538,3459.5,3458.1,0.2879]
[1732377526533,0.88283746,3459.5,3458.3,0.2879]
[1732377526731,1.90904546,3459.3,3458.7,0.2879]
[1732377527020,1.90904546,3458.9,3458.7,0.2879]
[1732377527226,0.02903746,3458.8,3458.7,0.2879]
[1732377527724,0.02903746,3458.8,3457.3,0.02891664]
[1732377527928,0.02903746,3458.8,3456.6,0.1]
[1732377527929,0.02903746,3458.8,3456.7,0.31681766]
[1732377528227,0.8538,3458.7,3456.7,0.2879]
[1732377528689,0.8538,3458.7,3456.7,0.31681986]
[1732377528690,0.02903746,3458.6,3456.7,0.31681986]
[1732377529036,0.02903746,3458.6,3456.8,0.2879]
[1732377529253,0.02903746,3459.0,3456.9,0.02891786]
[1732377530091,0.02903746,3459.0,3457.2,0.2879]
[1732377530326,0.02903746,3459.0,3457.4,0.2879]
[1732377530488,0.02903746,3459.0,3457.6,0.2879]
[1732377530831,0.02903746,3459.0,3457.8,0.2879]
[1732377531127,0.02903746,3459.0,3458.0,0.2879]
[1732377531432,0.02903746,3459.0,3457.2,1.90904546]
[1732377531433,0.02903746,3459.0,3458.4,0.2879]
[1732377531651,0.02903746,3459.0,3458.7,0.8379]
[1732377533903,0.8538,3459.7,3458.7,0.8379]
[1732377534121,0.8538,3460.3,3458.8,0.0289141]
[1732377534720,0.8538,3460.3,3459.0,0.2879]
[1732377535028,0.8538,3460.3,3459.2,0.2879]
[1732377535228,0.8538,3460.3,3458.9,0.38668141]
[1732377535229,0.8538,3460.3,3459.6,0.2879]
[1732377535445,0.8538,3460.3,3458.7,0.55]
[1732377535446,0.8538,3460.3,3459.8,0.2879]
[1732377535621,0.8538,3460.3,3460.0,0.55]
[1732377536518,1.90904546,3460.7,3460.0,0.55]
[1732377536947,4.90904546,3460.7,3460.0,0.55]
[1732377537166,0.8762,3460.8,3460.0,0.55]
[1732377537520,1.90904546,3461.6,3460.3,0.2879]
[1732377537818,0.8762,3461.5,3460.5,0.55]
[1732377538118,1.06710455,3461.5,3460.5,0.55]
[1732377538953,4.06710455,3461.5,3460.5,0.55]
[1732377542266,1.90904546,3461.2,3460.5,0.55]
[1732377560294,1.90904546,3461.2,3459.2,0.02889976]
[1732377560513,1.90904546,3461.2,3459.3,0.2879]
[1732377560710,0.8887,3461.1,3459.5,0.2879]
[1732377560863,3.0,3460.3,3459.0,0.2879]
[1732377561063,3.0,3460.3,3458.2,0.1]
[1732377561382,3.0,3460.3,3458.0,1.90904546]
[1732377561705,3.0,3460.3,3458.1,0.02891057]
[1732377562008,3.0,3460.3,3458.1,0.31681057]
[1732377563294,3.0,3460.3,3458.5,0.2879]
[1732377563495,3.0,3460.3,3458.6,0.86680854]
[1732377563789,3.0,3460.3,3458.7,0.55]
[1732377563996,3.0,3460.3,3458.8,0.02890854]
[1732377565011,3.0,3460.3,3458.6,0.02890854]
[1732377566326,3.0,3460.3,3458.8,0.55]
[1732377566475,3.0,3460.3,3458.8,0.57890855]
[1732377568522,0.8847,3460.2,3458.8,0.55]
[1732377568812,3.0,3459.9,3458.3,0.2879]
[1732377569013,1.90904546,3459.6,3458.3,0.2879]
[1732377569181,0.8847,3459.1,3458.3,0.2879]
[1732377569382,0.27937455,3459.0,3458.3,0.2879]
[1732377569707,3.8847,3459.1,3457.1,0.3168174]
[1732377570215,0.8847,3459.1,3457.1,0.3168174]
[1732377570671,0.8847,3459.1,3457.5,0.2879]
[1732377570872,0.8847,3459.1,3457.7,0.2879]
[1732377571080,0.8847,3459.1,3458.1,0.2879]
[1732377571375,0.8847,3459.1,3457.6,0.55]
[1732377571376,0.8847,3459.1,3458.3,0.2879]
[1732377571597,0.8847,3459.1,3458.4,0.8379]
[1732377572611,0.8847,3458.6,3456.7,0.02891625]
[1732377572816,0.8847,3458.6,3455.6,14.43]
[1732377572817,3.8847,3457.9,3455.7,0.0289267]
[1732377572997,3.8847,3457.9,3455.8,0.20379722]
[1732377573202,1.90904546,3457.6,3455.8,0.20379722]
[1732377573715,1.90904546,3457.6,3455.8,0.2327292]
[1732377573884,3.8847,3457.5,3455.8,0.20379722]
[1732377574090,3.8847,3457.5,3455.8,0.02893198]
[1732377574319,3.8847,3457.5,3455.3,0.02893198]
[1732377574477,1.90904546,3457.1,3454.8,0.12893485]
[1732377574682,0.8847,3456.2,3454.5,0.02893482]
[1732377575676,0.88076123,3456.2,3454.5,0.02893482]
[1732377575920,0.88076123,3456.2,3454.5,3.02893482]
[1732377576117,0.88076123,3456.2,3454.5,0.02893482]
[1732377576420,0.88076123,3456.2,3454.3,0.02894028]
[1732377576718,0.523,3456.5,3454.3,0.02894028]
[1732377576719,0.523,3456.5,3454.7,1.90904546]
[1732377576903,1.90904546,3457.3,3455.1,2.19694546]
[1732377577080,1.90904546,3457.3,3455.2,0.02893344]
[1732377577413,0.19090455,3457.2,3455.2,0.57893344]
[1732377577635,1.90904546,3457.3,3455.2,0.57893344]
[1732377577781,1.90904546,3457.3,3455.2,3.57893344]
[1732377577981,1.90904546,3457.3,3455.2,3.86683344]
[1732377578822,3.8917,3457.2,3455.2,3.86683344]
[1732377580089,3.8917,3457.2,3455.2,0.86683344]
[1732377581294,3.8917,3457.2,3455.2,3.86683344]
[1732377581592,3.0,3457.2,3455.2,3.86683344]
[1732377582009,1.90904546,3457.3,3455.2,3.86683344]
[1732377582828,0.8917,3457.5,3455.6,0.55]
[1732377583000,4.90904546,3457.7,3455.8,0.55]
[1732377583200,4.90904546,3457.7,3455.9,0.02892748]
[1732377583402,4.90904546,3457.7,3456.0,0.55]
[1732377583600,4.90904546,3457.7,3456.1,0.02892749]
[1732377583803,4.90904546,3457.7,3456.5,0.2879]
[1732377584134,4.90904546,3457.7,3456.8,0.2879]
[1732377584441,0.8383,3457.8,3457.0,0.55]
[1732377584742,3.0,3458.0,3457.3,0.2879]
[1732377584939,2.74734546,3458.1,3457.4,0.8379]
[1732377585717,1.90904546,3458.5,3457.4,0.8379]
[1732377587016,4.90904546,3458.5,3457.4,0.8379]
[1732377587396,1.90904546,3458.1,3456.0,0.31682495]
[1732377587713,1.90904546,3457.3,3456.4,0.2879]
[1732377588532,1.90904546,3457.3,3455.3,0.3168321]
[1732377588920,1.90904546,3457.3,3455.5,0.2879]
[1732377589234,1.90904546,3457.3,3455.7,0.2879]
[1732377589448,3.9015,3457.6,3456.1,0.2879]
[1732377589614,3.9015,3457.6,3456.0,0.55]
[1732377589615,3.9015,3457.6,3456.5,0.2879]
[1732377590146,3.9015,3457.6,3456.8,0.2879]
[1732377591035,0.9015,3457.6,3456.3,0.2879]
[1732377591340,2.28783861,3457.4,3456.5,0.2879]
[1732377592202,2.28783861,3457.4,3455.0,0.31683295]
[1732377592908,2.28783861,3457.4,3455.4,0.2879]
[1732377593249,2.28783861,3457.4,3455.6,0.2879]
[1732377593808,2.28783861,3457.4,3455.8,0.2879]
[1732377594130,2.28783861,3457.4,3456.0,0.2879]
[1732377594367,2.28783861,3457.4,3456.2,0.2879]
[1732377594976,2.28783861,3457.4,3455.6,0.02893108]
[1732377594977,2.28783861,3457.4,3456.4,0.2879]
[1732377595169,2.28783861,3457.4,3455.6,0.02893108]
[1732377595170,0.9015,3457.6,3456.6,0.2879]
[1732377596036,0.9015,3457.6,3456.7,0.2879]
[1732377596273,0.9015,3457.6,3455.6,0.02893101]
[1732377596274,0.9015,3457.6,3456.8,0.8379]
[1732377598055,0.44925104,3458.0,3456.8,0.8379]
[1732377598056,0.9015,3458.0,3456.8,0.8379]
[1732377600841,3.46330638,3458.5,3456.8,0.8379]
[1732377600970,3.0,3458.5,3456.8,0.8379]
[1732377601499,2.28783861,3458.6,3456.8,0.8379]
[1732377602254,5.28783861,3458.6,3456.8,0.8379]
[1732377605351,2.28783861,3459.1,3456.8,0.8379]
[1732377605549,3.8249,3458.6,3457.4,0.2879]
[1732377605747,3.8249,3458.6,3457.6,0.2879]
[1732377606809,3.8249,3458.6,3457.1,0.2879]
[1732377606996,3.8249,3458.6,3457.3,0.2879]
[1732377607766,4.3749,3458.6,3457.3,0.2879]
[1732377608062,4.3749,3458.6,3457.1,0.2879]
[1732377608309,4.3749,3458.6,3457.3,0.2879]
[1732377608609,3.55,3458.6,3457.3,0.2879]
[1732377609399,0.55,3458.6,3457.1,0.2879]
[1732377609714,0.55,3458.6,3457.2,0.55]
[1732377609923,0.55,3458.6,3457.5,0.2879]
[1732377610894,0.55,3458.6,3457.6,0.2879]
[1732377611922,2.28783861,3459.1,3457.1,0.2879]
[1732377612126,2.28783861,3459.1,3457.2,0.0289196]
[1732377612309,2.83783861,3459.1,3457.3,0.2879]
[1732377612491,2.83783861,3459.1,3457.5,0.2879]
[1732377612824,1.91207839,3459.0,3457.7,0.2879]
[1732377613090,4.91207839,3459.0,3457.7,0.2879]
[1732377613223,1.91207839,3459.0,3457.7,0.2879]
[1732377613936,0.55,3459.1,3457.9,0.2879]
[1732377614345,0.79620784,3459.1,3457.9,0.2879]
[1732377614747,0.55,3459.1,3457.2,0.31681775]
[1732377614958,0.46165098,3459.7,3457.7,0.55]
[1732377615172,0.46165098,3459.7,3457.8,0.59181259]
[1732377615301,2.79747839,3459.8,3458.2,0.2879]
[1732377615495,2.79747839,3459.8,3457.9,0.55]
[1732377615496,0.27974784,3459.7,3458.4,0.2879]
[1732377615748,0.82974784,3459.7,3458.6,0.2879]
[1732377615959,0.55,3459.7,3458.6,0.2879]
[1732377616298,0.46005829,3459.8,3458.6,0.2879]
[1732377616503,1.91207839,3460.1,3458.6,0.2879]
[1732377616802,0.27974784,3460.0,3458.7,0.2879]
[1732377617949,0.27974784,3460.0,3458.2,0.2879]
[1732377618104,3.0,3460.0,3458.2,0.2879]
[1732377618448,5.35742932,3460.1,3458.4,0.2879]
[1732377619340,5.35742932,3460.1,3458.6,0.2879]
[1732377619644,5.90742932,3460.1,3458.6,0.2879]
[1732377620430,1.91207839,3459.3,3458.7,0.2879]
[1732377620681,0.19120784,3459.2,3457.2,0.2879]
[1732377620839,0.19120784,3459.2,3457.3,0.0289165]
[1732377621226,1.91207839,3458.9,3457.2,0.2879]
[1732377621427,1.91207839,3458.9,3456.8,0.31681936]
[1732377621743,1.91207839,3458.1,3457.0,0.2879]
[1732377621944,1.91207839,3458.1,3457.2,0.2879]
[1732377622115,1.91207839,3458.1,3457.1,0.21500868]
[1732377622116,1.91207839,3458.1,3457.4,0.2879]
[1732377622321,1.91207839,3458.1,3457.5,0.21500868]
[1732377622546,1.91207839,3458.1,3457.6,0.21500868]
[1732377622738,1.91207839,3458.1,3457.7,0.21500868]
[1732377622943,1.91207839,3458.1,3457.5,0.2879]
[1732377623906,1.91207839,3458.1,3456.7,0.2879]
[1732377624136,1.91207839,3458.1,3456.9,0.2879]
[1732377624522,1.91207839,3458.1,3457.1,0.2879]
[1732377624723,1.91207839,3458.1,3457.3,0.2879]
[1732377625758,1.91207839,3458.1,3456.9,0.2879]
[1732377625927,0.45552653,3458.3,3457.3,0.2879]
[1732377626135,1.91207839,3458.5,3457.5,0.2879]
[1732377626828,1.91207839,3458.5,3457.6,0.55]
[1732377627029,2.36237265,3458.5,3457.6,0.55]
[1732377628077,2.59860992,3458.5,3457.6,0.55]
[1732377628363,0.8325,3458.3,3456.9,0.2879]
[1732377628518,1.91207839,3458.1,3457.1,0.2879]
[1732377628723,1.91207839,3458.1,3457.3,0.2879]
[1732377629820,1.91207839,3458.1,3457.4,0.2879]
[1732377630016,3.0,3458.2,3457.4,0.2879]
[1732377630247,1.91207839,3458.0,3457.4,0.2879]
[1732377630963,0.8325,3458.3,3456.9,0.2879]
[1732377631263,4.91207839,3458.2,3457.3,0.2879]
[1732377631767,0.49526769,3459.3,3456.7,0.028924]
[1732377631768,1.91207839,3458.6,3457.7,0.55]
[1732377631989,1.91207839,3458.6,3457.8,0.55]
[1732377632473,1.91207839,3458.6,3457.9,0.2879]
[1732377632978,1.91207839,3458.2,3457.9,0.2879]
[1732377633673,1.91207839,3458.2,3456.5,0.02891961]
[1732377633876,1.91207839,3458.2,3456.5,0.31681961]
[1732377634178,1.91207839,3458.2,3456.7,0.2879]
[1732377634476,1.91207839,3458.2,3457.1,0.2879]
[1732377634645,1.91207839,3458.2,3457.5,0.2879]
[1732377634846,0.445837,3458.6,3457.5,0.2879]
[1732377635048,1.91207839,3458.1,3457.5,0.2879]
[1732377635787,1.91207839,3457.7,3457.6,0.2879]
[1732377636723,1.91207839,3457.7,3455.9,0.2879]
[1732377637033,1.91207839,3457.3,3456.1,0.2879]
[1732377637227,1.91207839,3456.9,3456.3,0.2879]
[1732377638181,1.91207839,3456.9,3455.6,0.2879]
[1732377638987,1.91207839,3456.5,3455.6,0.2879]
[1732377639323,1.91207839,3456.5,3455.5,0.2879]
[1732377639750,3.0,3456.9,3455.5,0.2879]
[1732377639751,1.91207839,3456.1,3455.5,0.2879]
[1732377640243,1.91207839,3456.1,3454.7,0.2879]
[1732377640561,1.91207839,3456.1,3454.8,0.02893751]
[1732377640851,1.91207839,3456.5,3455.1,0.2879]
[1732377641040,1.91207839,3456.5,3455.3,0.2879]
[1732377641210,1.91207839,3456.5,3455.5,0.2879]
[1732377641424,1.91207839,3456.5,3455.7,0.2879]
[1732377641766,1.91207839,3456.5,3456.0,0.8379]
[1732377642452,1.91207839,3456.5,3456.0,0.2879]
[1732377642606,1.91207839,3456.5,3454.9,0.02893402]
[1732377642806,1.91207839,3456.5,3454.8,0.2879]
[1732377643006,1.91207839,3456.5,3455.0,0.2879]
[1732377643309,1.91207839,3456.1,3455.2,0.2879]
[1732377643516,1.91207839,3455.7,3455.2,0.2879]
[1732377644122,1.91207839,3456.1,3455.2,0.2879]
[1732377644438,1.91207839,3456.1,3454.1,0.02894115]
[1732377644619,1.91207839,3456.1,3454.2,0.31684115]
[1732377644814,1.91207839,3456.1,3454.4,0.2879]
[1732377645151,1.91207839,3456.1,3454.6,0.2879]
[1732377645510,1.91207839,3456.1,3454.9,0.55]
[1732377645709,1.91207839,3456.1,3455.1,0.8379]
[1732377646042,1.91207839,3455.3,3454.2,0.43025328]
[1732377646228,1.91207839,3455.3,3453.9,0.02894115]
[1732377646857,1.91207839,3455.7,3453.9,0.02894115]
[1732377647207,1.91207839,3455.7,3454.0,0.2884]
[1732377647411,1.91207839,3455.7,3454.2,0.8384]
[1732377647612,1.91207839,3455.7,3454.3,0.02894417]
[1732377647907,1.91207839,3455.3,3454.2,0.8384]
[1732377648109,1.91207839,3455.3,3454.2,10.8384]
[1732377648334,1.91207839,3455.3,3454.6,0.55]
[1732377649349,1.91207839,3455.3,3454.5,0.55]
[1732377651826,1.91207839,3455.7,3454.5,0.8384]
[1732377652023,1.91207839,3455.7,3454.7,0.55]
[1732377652449,1.91207839,3455.3,3454.7,0.55]
[1732377653033,1.91207839,3455.7,3454.7,0.55]
[1732377653768,3.0,3456.0,3454.8,0.2884]
[1732377653769,1.91207839,3454.9,3454.8,0.2884]
[1732377654746,1.91207839,3454.9,3454.3,0.2884]
[1732377655448,1.91207839,3454.5,3454.3,0.2884]
[1732377656694,1.91207839,3454.5,3452.2,5.23]
[1732377657349,1.91207839,3454.5,3454.2,9.27854508]
[1732377657788,1.91207839,3454.5,3451.6,0.743]
[1732377657789,0.8886,3454.2,3451.6,0.743]
[1732377657995,1.91207839,3452.7,3451.6,0.743]
[1732377658364,1.91207839,3452.7,3451.7,0.2884]
[1732377658770,2.29458708,3452.6,3451.6,0.743]
[1732377659597,2.29458708,3453.4,3451.7,0.77197149]
[1732377660013,2.29458708,3453.8,3451.7,0.77197149]
[1732377660157,2.29458708,3454.2,3451.8,0.743]
[1732377660364,2.29458708,3454.2,3452.0,0.743]
[1732377660597,0.8886,3454.4,3452.4,0.743]
[1732377660757,0.09999986,3455.4,3452.2,3.0]
[1732377660758,0.8886,3454.9,3452.5,2.87354335]
[1732377660967,0.8886,3454.9,3452.9,2.29458708]
[1732377661310,3.18318708,3455.4,3453.5,0.55]
[1732377661460,0.22945871,3455.3,3453.5,0.55]
[1732377661661,0.22945871,3455.3,3453.7,0.55]
[1732377661895,0.22945871,3455.3,3453.8,0.743]
[1732377662098,0.22945871,3455.3,3453.9,0.55]
[1732377662305,1.46617604,3455.7,3454.1,0.55]
[1732377662511,1.46617604,3455.7,3454.3,0.55]
[1732377662868,0.46550714,3455.8,3454.3,0.55]
[1732377663066,0.27600942,3455.8,3454.3,0.55]
[1732377663266,2.29458708,3455.8,3454.3,0.55]
[1732377664571,2.29458708,3456.2,3454.5,0.55]
[1732377664770,2.29458708,3456.2,3454.7,1.293]
[1732377665305,2.29458708,3455.8,3454.7,1.293]
[1732377665673,2.29458708,3456.2,3454.7,1.293]
[1732377665948,5.29458708,3456.2,3454.7,1.293]
[1732377667314,1.42601198,3456.9,3455.6,0.55]
[1732377667820,0.848,3457.4,3455.6,0.55]
[1732377667821,4.61870949,3457.4,3455.7,0.743]
[1732377667971,3.77070949,3457.4,3455.9,0.743]
[1732377668176,3.77070949,3457.4,3456.0,0.55]
[1732377669486,3.0,3457.3,3456.0,0.55]
[1732377670440,5.29458708,3457.4,3456.0,0.55]
[1732377670597,3.0,3457.3,3456.0,0.55]
[1732377671002,5.29458708,3457.4,3456.0,0.55]
[1732377671200,2.29458708,3456.6,3455.9,0.743]
[1732377671419,2.29458708,3456.6,3455.2,0.743]
[1732377672804,2.29458708,3456.6,3455.3,0.55]